{"text_format":"1","workbook":"xlsx","n_sheets":11,"sheets":["Startseite","Modul 1","Modul 2","Modul 3","Modul 4","Modul 5","Modul 5 Fortsetzung","Modul 6","Ergebnisse","Notizen","Module 7 und 8"],"not_rendered":{"charts":8,"images":32,"macros":1,"external_links":0,"defined_names":3,"comments":7,"pivot_tables":0},"unopened":[],"bounds":{"document_bytes":16777216,"sheet_cells":100000,"rows_first":2000,"rows_last":500,"rows_between":2000,"halvings":0,"cell_chars":16384,"cell_head_chars":4096},"cells_cut":0,"cells_raw":0,"read":"whole","date_system":"1900"}

{"sheet":"Startseite","index":0,"n_rows":8,"n_cols":7,"rows_kept":8,"cut":false,"hidden":false,"merged":[[1,1,1,7],[17,5,22,7],[3,1,14,4]]}
[]
[]
[]
[]
[null,null,null,null,null,null,"Der Pflegegrad wird eingeschätzt für:"]
[null,null,null,null,null,null,"Name:"]
[null,null,null,null,null,null,"Geburtsdatum:"]
[null,null,null,null,null,null,"Datum:"]

{"sheet":"Modul 1","index":1,"n_rows":23,"n_cols":12,"rows_kept":23,"cut":false,"hidden":false,"merged":[[23,2,23,6]]}
[null,{"$f":"IF(Startseite!H7=\"\",\"\",Startseite!H7)","v":""},{"$f":"IF(Startseite!H6=\"\",\"\",Startseite!H6)","v":""}]
[null,"Modul 1: Mobilität"]
[null,null,"Bewertung Selbständigkeit","selbständig","überwiegend selbständig","überwiegend unselbständig","unselbständig"]
[null," 1.1","Positionswechsel im Bett \nEinnehmen von verschiedenen Positionen im Bett, Drehen um die Längsachse, Aufrichten aus dem Liegen",null,null,null,null,{"$f":"CHOOSE(I4,0,1,2,3)","v":0},1]
[null," 1.2","Halten einer stabilen Sitzposition \nSich auf einem Bett, Stuhl oder Sessel aufrecht halten",null,null,null,null,{"$f":"CHOOSE(I5,0,1,2,3)","v":0},1]
[null," 1.3","Umsetzen\nVon einer erhöhten Sitzfläche, Bettkante, Stuhl, Sessel, Bank, Toilette etc. aufstehen und sich auf einen Rollstuhl, Toilettenstuhl, Sessel o. Ä. umsetzen",null,null,null,null,{"$f":"CHOOSE(I6,0,1,2,3)","v":0},1]
[null," 1.4","Fortbewegen innerhalb des Wohnbereichs \nSich innerhalb einer Wohnung oder im Wohnbereich einer Einrichtung zwischen den Zimmern (mind. acht Meter) sicher bewegen",null,null,null,null,{"$f":"CHOOSE(I7,0,1,2,3)","v":0},1]
[null," 1.5","Treppensteigen \nÜberwinden von Treppen zwischen zwei Etagen",null,null,null,null,{"$f":"CHOOSE(I8,0,1,2,3)","v":0},1]
[]
[null,null,"Summe Einzelpunkte Modul 1",{"$f":"SUM(H4:H8)","v":0},null,null,null,{"$f":"SUM(H4:H8)","v":0},null,"Klassenuntergrenze","Bereich","Punktzahl"]
[null,null,"Gewichtete Punkte Modul 1 ",{"$f":"VLOOKUP(H10,Tabelle1[],3,TRUE)","v":0},null,null,null,{"$f":"VLOOKUP(H10,Tabelle1[],3,TRUE)","v":0},null,0,"0 bis unter 2",0]
[null,null,"Besondere Bedarfskonstellation: Gebrauchsunfähigkeit beider Arme und beider Beine.  Zuordnung zu Pflegegrad 5 ","Nein",null,null,null,null,null,2,"2 bis unter 4",2.5]
[null,null,null,null,null,null,null,null,null,4,"4 bis unter 5",5]
[null,null,null,null,null,null,null,null,null,6,"6 bis unter 10",7.5]
[null,null,null,null,null,null,null,null,null,10,"10 und mehr ",10]
[]
[]
[]
[]
[]
[]
[]
[null,null,"Persönliche Notizen:"]

{"sheet":"Modul 2","index":2,"n_rows":28,"n_cols":12,"rows_kept":28,"cut":false,"hidden":false,"merged":[[28,2,28,6]]}
[null,{"$f":"'Modul 1'!B1","v":""},{"$f":"'Modul 1'!C1","v":""}]
[null," Modul 2: Kognitive und Kommunikative Fähigkeiten"]
[null,null,"Bewertung Fähigkeit ","vorhanden, unbeein-\nträchtigt","größtenteils vorhanden","in geringem Maße vorhanden","nicht vorhanden"]
[null," 2.1","Erkennen von Personen aus dem näheren Umfeld, Fähigkeit, Personen aus dem näheren Umfeld wieder-zuerkennen, d. h. Menschen, zu denen im Alltag regelmäßig ein direkter Kontakt besteht",null,null,null,null,{"$f":"CHOOSE(I4,0,1,2,3)","v":0},1,"Klassenuntergrenze","Bereich","Punktzahl"]
[null," 2.2","Örtliche Orientierung, Fähigkeit, sich in der räumlichen Umgebung zurechtzufinden, andere Orte gezielt anzusteuern und zu wissen, wo man sich befindet",null,null,null,null,{"$f":"CHOOSE(I5,0,1,2,3)","v":0},1,0,"0 bis unter 2",0]
[null," 2.3","Zeitliche Orientierung, Fähigkeit, zeitliche Strukturen zu erkennen",null,null,null,null,0,1,2,"2 bis unter 6",3.75]
[null," 2.4","Erinnern an wesentliche Ereignisse oder Beobachtungen, Fähigkeit, sich an kurz und auch länger zurückliegende Ereignisse oder Beobachtungen zu erinnern",null,null,null,null,0,1,6,"6 bis unter 11",7.5]
[null," 2.5","Steuern von mehrschrittigen Alltagshandlungen, Fähigkeit, zielgerichtete Handlungen des Lebensalltags, die eine Abfolge von Teilschritten umfassen, zu steuern ",null,null,null,null,0,1,11,"11 bis unter 17",11.25]
[null," 2.6 ","Treffen von Entscheidungen im Alltag, Fähigkeit, folgerichtige und geeignete Entscheidungen im Alltag zu treffen",null,null,null,null,0,1,17,"17 und mehr ",15]
[null," 2.7","Verstehen von Sachverhalten und Informationen, Fähigkeit, Sachverhalte zu verstehen und Informationen inhaltlich einordnen zu können ",null,null,null,null,0,1]
[null," 2.8","Erkennen von Risiken und Gefahren, Fähigkeit, Risiken und Gefahren zu erkennen",null,null,null,null,0,1]
[null," 2.9","Mitteilen von elementaren Bedürfnissen, Fähigkeit, elementare Bedürfnisse verbal oder nonverbal mitzuteilen",null,null,null,null,0,1]
[null," 2.10","Verstehen von Aufforderungen, Fähigkeit, Aufforderungen in Hin\u0002blick auf alltägliche Grundbedürfnisse zu verstehen",null,null,null,null,0,1]
[null," 2.11","Beteiligen an einem Gespräch, Fähigkeit, in einem Gespräch \nGesprächsinhalte aufzunehmen, sinngerecht zu antworten und zur Weiterführung des Gesprächs Inhalte einzubringen",null,null,null,null,{"$f":"CHOOSE(I14,0,1,2,3)","v":0},1]
[]
[null,null,"Summe Einzelpunkte Modul 2",{"$f":"SUM(H4:H14)","v":0},null,null,null,{"$f":"SUM(H4:H14)","v":0}]
[null,null,"Gewichtete Punkte Modul 2",{"$f":"VLOOKUP(H16,Tabelle13[],3,TRUE)","v":0},null,null,null,{"$f":"VLOOKUP(H16,Tabelle13[],3,TRUE)","v":0}]
[null,null,null,null,null,null,null,null,null,{"$f":"H16","v":0}]
[]
[null,null,null,{"$f":"H17+'Modul 1'!H11","v":0}]
[]
[]
[]
[]
[]
[]
[]
[null,null,"Persönliche Notizen:"]

{"sheet":"Modul 3","index":3,"n_rows":31,"n_cols":12,"rows_kept":31,"cut":false,"hidden":false,"merged":[[31,2,31,6]]}
[null,{"$f":"'Modul 1'!B1","v":""},{"$f":"'Modul 1'!C1","v":""}]
[null," Modul 3: Verhaltensweisen und psychische Problemlagen"]
[null,null,"Bewertung Häufigkeit personelle Hilfen","nie oder sehr selten","selten\n (1- bis 3-mal in 2 Wochen)","häufig \n(2- bis mehr-mals/Woche)","täglich"]
[null," 3.1","Motorisch geprägte Verhaltensauffälligkeiten, z. B. (scheinbar) zielloses Umhergehen, Versuch desorientierter Menschen, ohne Begleitung außer Haus zu gehen, ständiges Aufstehen und Hinsetzen, Hin- und Herrutschen",null,null,null,null,{"$f":"CHOOSE(I4,0,1,3,5)","v":0},1,"Klassenuntergrenze","Bereich","Punktzahl"]
[null," 3.2","Nächtliche Unruhe, z. B. nächtliches Umherirren, nächtliche Unruhephasen, Umkehr Tag-Nacht-Rhythmus",null,null,null,null,0,1,0,"0 bis unter 1",0]
[null," 3.3","Selbstschädigendes und autoaggressives Verhalten, z. B. Selbstverletzung mit Gegenständen, Zähnen etc., Essen und Trinken ungenießbarer Substanzen",null,null,null,null,0,1,1,"1 bis unter 3",3.75]
[null," 3.4","Beschädigen von Gegenständen, aggressive Handlungen wie das Weg\u0002stoßen, Wegschieben, Schlagen, Zerstören von, Treten nach Gegenständ",null,null,null,null,0,1,3,"3 bis unter 5",7.5]
[null," 3.5","Physisch aggressives Verhalten gegenüber anderen Personen, z. B. das Schlagen, Treten nach, Stoßen, Wegdrängen, Verletzen mit Gegenständen etc.",null,null,null,null,0,1,5,"5 bis unter 7",11.25]
[null," 3.6","Verbale Aggression, z. B. verbale Beschimpfungen oder Bedrohung anderer Personen",null,null,null,null,0,1,7,"7 und mehr ",15]
[null," 3.7","Andere pflegerelevante vokale Auffälligkeiten, z. B. Rufen, Schreien, Klagen, Vor-sich-hin-Schimpfen, Fluchen, ständiges Wiederholen von Sätzen",null,null,null,null,0,1]
[null," 3.8","Abwehr pflegerischer und anderer unterstützender Maßnahmen, z. B. bei der Pflege, Verweigerung von Nahrungs-/Medikamentenaufnahme, Manipulation an Vorrichtungen wie Katheter, Infusion oder Sonde",null,null,null,null,0,1]
[null," 3.9","Wahnvorstellungen, z. B. Vorstellung, mit Verstorbenen, imaginären Perso\u0002nen in Kontakt zu stehen oder verfolgt, bedroht oder bestohlen zu werden",null,null,null,null,0,1]
[null," 3.10","Ängste, z. B. starke Ängste und Sorgen, Angstattacken unabhängig von der Ursache",null,null,null,null,{"$f":"CHOOSE(I13,0,1,3,5)","v":0},1]
[null," 3.11 ","Antriebslosigkeit bei depressiver Stimmungslage, z. B. kaum Interesse, kaum Eigeninitiative, Notwendigkeit der Motivierung, wirkt traurig, apathisch",null,null,null,null,0,1]
[null," 3.12 ","Sozial inadäquate Verhaltensweisen, z. B. distanzloses Verhalten, auffälli\u0002ges Einfordern von Aufmerksamkeit, unangemessenes Greifen nach Personen, unangemessene körperliche oder verbale sexuelle Annäherungsversuche",null,null,null,null,0,1]
[null," 3.13","Sonstige pflegerelevante inadäquate Handlungen, z. B. Nesteln an Kleidung, planlose Aktivitäten, Verstecken/Horten, Kotschmieren, Urinieren",null,null,null,null,0,1]
[]
[null,null,"Summe Einzelpunkte Modul 3",{"$f":"SUM(H4:H16)","v":0},null,null,null,{"$f":"SUM(H4:H16)","v":0},null,{"$f":"H18","v":0}]
[null,null,"Gewichtete Punkte Modul 3",{"$f":"VLOOKUP(D18,Tabelle134[],3,TRUE)","v":0},null,null,null,{"$f":"VLOOKUP(H18,Tabelle134[],3,TRUE)","v":0},null,{"$f":"SUM('Modul 2'!J18)","v":0}]
[null,null,null,null,null,null,null,{"$f":"VLOOKUP(J19,Tabelle134[],3,TRUE)","v":0}]
[]
[]
[]
[]
[]
[]
[]
[]
[]
[]
[null,null,"Persönliche Notizen:"]

{"sheet":"Modul 4","index":4,"n_rows":33,"n_cols":13,"rows_kept":33,"cut":false,"hidden":false,"merged":[[15,5,15,7],[33,2,33,6],[15,2,15,4]]}
[null,{"$f":"'Modul 1'!B1","v":""},{"$f":"'Modul 1'!C1","v":""}]
[null,"Modul 4: Selbstversorgung"]
[null,null,"Bewertung Selbständigkeit","entfällt","selbständig","überwiegend selbständig","überwiegend unselbständig","unselbständig"]
[null," 4.1 ","Waschen des vorderen Oberkörpers, sich die Hände, das Gesicht, den Hals, die Arme, die Achselhöhlen und den vorderen Brustbereich waschen und abtrocknen",null,null,null,null,null,{"$f":"CHOOSE(J4,0,1,2,3)","v":0},1,"Klassenuntergrenze","Bereich","Punktzahl"]
[null," 4.2","Körperpflege im Bereich des Kopfes, Kämmen, Zahnpflege, Prothesenreinigung, Rasieren",null,null,null,null,null,0,1,0,"0 bis unter 3",0]
[null," 4.3","Waschen des Intimbereichs, den Intimbereich waschen und abtrocknen",null,null,null,null,null,0,1,3,"3 bis unter 8",10]
[null," 4.4","Duschen und Baden einschließlich Waschen der Haare, Durchführung des Dusch- oder Wannenbades einschließlich des Waschens der Haare",null,null,null,null,null,0,1,8,"8 bis unter 19",20]
[null," 4.5","An- und Auskleiden des Oberkörpers, bereitliegende Kleidungsstücke, z. B. Unterhemd, T-Shirt, Hemd, Bluse, Pullover, Jacke, BH, Schlafanzugoberteil oder Nachthemd",null,null,null,null,null,0,1,19,"19 bis unter 37",30]
[null," 4.6","An- und Auskleiden des Unterkörpers, bereitliegende Kleidungsstücke, z. B. Unterwäsche, Hose, Rock, Strümpfe und \nSchuhe, an- und ausziehen",null,null,null,null,null,0,1,37,"37 und mehr ",40]
[null," 4.7 ","Mundgerechtes Zubereiten der Nahrung und Eingießen \nvon Getränken, Zerteilen von Nahrung in mundgerechte Stücke und Eingießen von Getränken",null,null,null,null,null,0,1]
[null," 4.8","Essen, bereitgestellte, mundgerecht zubereitete Speisen essen",null,null,null,null,null,{"$f":"CHOOSE(J11,0,3,6,9)","v":0},1]
[null," 4.9","Trinken, bereitstehende Getränke aufnehmen, ggf. mit Ge\u0002genständen wie Strohhalm, Spezialbecher mit Trinkaufs",null,null,null,null,null,{"$f":"CHOOSE(J12,0,2,4,6)","v":0},1]
[null," 4.10","Benutzen einer Toilette oder eines Toilettenstuhls, Gehen zur Toilette, Hinsetzen und Aufstehen, Sitzen während der \nBlasen- oder Darmentleerung, Intimhygiene und Richten der Kleidung",null,null,null,null,null,{"$f":"CHOOSE(J13,0,2,4,6)","v":0},1]
[null," 4.11","Bewältigen der Folgen einer Harninkontinenz und Umgang mit Dauerkatheter und Urostoma, Inkontinenz- und Stomasysteme sachgerecht verwenden, nach Bedarf wechseln und entsorgen",null,null,null,null,null,{"$f":"CHOOSE(J14,0,0,1,2,3)","v":0},1]
[null," 4.12","Bewältigen der Folgen einer Stuhlinkontinenz und Umgang mit Stoma, Inkontinenz- und Stomasysteme sachgerecht verwenden, nach Bedarf wechseln und entsorgen",null,null,null,null,null,{"$f":"CHOOSE(J15,0,0,1,2,3)","v":0},1]
[null,null,"mit Hilfe"]
[null,null,"Bewertung Selbstständigkeit","entfällt","selbstständig","nicht täglich, nicht auf Dauer","täglich, zusätzlich zu oraler Ernährung","ausschließlich oder nahezu ausschließlich"]
[null," 4.13","Ernährung parenteral oder über Sonde \nErnährung über einen parenteralen Zugang (z. B. einen Port) oder über einen Zugang in Magen oder Dünndarm (PEG/PEJ)",null,null,null,null,null,{"$f":"CHOOSE(J18,0,0,0,6,3)","v":0},1]
[]
[null,null,"Summe Einzelpunkte Modul 4",{"$f":"SUM(I18,I4:I15)","v":0},null,null,null,null,{"$f":"SUM(I18,I4:I15)","v":0},{"$f":"Ergebnisse!D6+Ergebnisse!D13+Ergebnisse!D16","v":0}]
[null,null,"Gewichtete Punkte Modul 4",{"$f":"VLOOKUP(I20,Tabelle1345[],3,TRUE)","v":0},null,null,null,null,{"$f":"VLOOKUP(I20,Tabelle1345[],3,TRUE)","v":0}]
[]
[]
[]
[]
[]
[]
[]
[]
[]
[]
[]
[null,null,"Persönliche Notizen:"]

{"sheet":"Modul 5","index":5,"n_rows":34,"n_cols":12,"rows_kept":34,"cut":false,"hidden":false,"merged":[[34,2,34,6],[1,1,1,4]]}
[null,{"$f":"'Modul 1'!B1","v":""},{"$f":"'Modul 1'!C1","v":""}]
[null,"Modul 5: Bewältigung von und selbstständiger Umgang mit krankheits- und therapiebedingten Anforderungen und Belastungen"]
[null,null,"Bewertung Häufigkeit personelle Hilfe \nZu jedem Kriterium ist nur ein Eintrag möglich.\nAnzahl entweder bei „pro Tag“, „pro Woche“ oder „pro Monat“ eintragen!","entfällt oder selbstständig","pro Tag","pro Woche","pro Monat","Klassenuntergrenze","Bereich","Punktzahl"]
[null," 5.1","Medikation, orale Medikation, Augen- oder Ohrentropfen, Zäpfchen und Medikamentenpflaster",null,null,null,null,0,"0 bis unter 1",0]
[null," 5.2","Injektionen, subkutane und intramuskuläre Injektionen und subkutane Infusionen",null,null,null,null,1,"1 bis unter 3",1]
[null," 5.3","Versorgung intravenöser Zugänge (z. B. Port), einschl. Kontrolle zur Vermeidung von Komplikationen wie Verstopfung des Katheters",null,null,null,null,3,"3 bis unter 8",2]
[null," 5.4","Absaugen und Sauerstoffgabe (durchschnittl. Häufigkeit Absaugen, An- und Ablegen Sauerstoffbrille, Atemmaske, Bereitstellen Inhalationsgerät)",null,null,null,null,8,"8 und mehr ",3]
[null," 5.5","Einreibungen sowie Kälte- und Wärmeanwendungen (alle Einreibun\u0002gen mit ärztlich verordneten Salben, Cremes, Emulsionen etc.)"]
[null," 5.6","Messung und Deutung von Körperzuständen (wie Blutdruck, Puls, Blutzucker, Temperatur, Gewicht, Flüssigkeitshaushalt auf ärztl. Anordnung)"]
[null," 5.7","Körpernahe Hilfsmittel (An-/Ablegen von Prothesen, Zahnspange, Orthesen, Brille, Hörgerät, Kompressionsstrümpfen etc. - inkl. Reinigung"]
[null,null,"Summe Maßnahmen pro Zeitraum",null,{"$f":"SUM(E4:E10)","v":0},{"$f":"SUM(F4:F10)","v":0},{"$f":"SUM(G4:G10)","v":0}]
[null,null,"Umrechnung in Maßnahmen pro Tag",null,{"$f":"SUM(E4:E10)","v":0},{"$f":"F11/7","v":0},{"$f":"G11/30","v":0}]
[null,null,"Summe Maßnahmen pro Tag",null,{"$f":"SUM(E12:G12)","v":0}]
[null,null,"Einzelpunkte",{"$f":"VLOOKUP(E13,Tabelle13456[],3,TRUE)","v":0}]
[null," 5.8","Verbandswechsel und Wundversorgung (Versorgung chronischer Wunden wie z. B. Ulcus cruris oder Dekubitus)",null,null,null,null,"Klassenuntergrenze","Bereich","Punktzahl"]
[null," 5.9","Versorgung Stoma (Pflege künstlicher Körperöffnungen wie Tracheostoma, PEG, suprapubischer Blasenkatheter, Urostoma, Colo- oder Ileostoma)",null,null,null,null,0,"0 bis unter 0,1428",0]
[null," 5.10","Regelmäßige Einmalkatheterisierung und Nutzung von Abführmethoden (Klistier, Einlauf, digitale Endausräumung)",null,null,null,null,0.14280000000000001,"0,1428 bis mehrmals pro Woche",1]
[null," 5.11","Therapiemaßnahmen in häuslicher Umgebung (wie dauerhafte und regelmäßige krankengymn., Atem-, logopäd. Übungen, Peritonealdialyse)",null,null,null,null,1,"1 bis unter 3",2]
[null,null,"Summe Maßnahmen pro Zeitraum",null,{"$f":"SUM(E15:E18)","v":0},{"$f":"SUM(F15:F18)","v":0},{"$f":"SUM(G15:G18)","v":0},3,"3 und mehr ",3]
[null,null,"Umrechnung in Maßnahmen pro Tag",null,{"$f":"E19","v":0},{"$f":"F19/7","v":0},{"$f":"G19/30","v":0},null,null,null,null,{"$f":"D22+'Modul 4'!J20","v":0}]
[null,null,"Summe Maßnahmen pro Tag",null,{"$f":"SUM(E20:G20)","v":0}]
[null,null,"Einzelpunkte ",{"$f":"VLOOKUP(E21,Tabelle134567[],3,TRUE)","v":0}]
[]
[]
[]
[]
[]
[]
[]
[]
[]
[]
[]
[null,null,"Persönliche Notizen:"]

{"sheet":"Modul 5 Fortsetzung","index":6,"n_rows":28,"n_cols":12,"rows_kept":28,"cut":false,"hidden":false,"merged":[[1,1,1,6],[28,2,28,6]]}
[null,{"$f":"'Modul 1'!B1","v":""},{"$f":"'Modul 1'!C1","v":""}]
[null,"Fortsetzung Modul 5: Bewältigung von und selbstständiger Umgang mit krankheits- und therapie\u0002bedingten Anforderungen und Belastungen"]
[null,null,"Bewertung Häufigkeit personelle Hilfe \nZu jedem Kriterium ist nur ein Eintrag möglich. Häkchen bzw. Eingabe entweder bei \"entfällt oder selbständig\", „täglich“, „pro Woche“ oder „pro Monat“ eintragen!","entfällt oder selbständig","täglich","pro Woche","pro Monat"]
[null," 5.12","Zeit- und technikintensive Maßnahmen in häuslicher Umgebung \n(spezielle Therapiemaßnahmen wie Hämodialyse oder Beatmung bei ständiger Überwachung)",null,null,null,null,null,null,"Klassenuntergrenze","Bereich","Punktzahl"]
[null," 5.13","Arztbesuche (regelmäßige Besuche bei niedergelassenen Ärzten zu diagnostischen oder therapeutischen Zwecken mit Notwendigkeit der Begleitung/Unterstützung)",null,null,null,null,null,null,0,"0 bis unter 4,3",0]
[null," 5.14","Besuche anderer medizinischer oder therapeutischer Einrichtungen \n(bis zu 3 Stunden) (Aufsuchen von Therapeuten wie Physiotherapeuten, Krankengymnastik, Ergotherapeuten, Logopäden, Psychotherapeuten, ambulante Behandlung/Diagnostik in Krankenhäusern etc.)",null,null,null,null,null,null,4.3,"4,3 bis unter 8,6",1]
[null," 5.15","Zeitlich ausgedehnte Besuche anderer medizinischer oder therapeutischer Einrichtungen (länger als 3 Stunden)",null,null,null,null,null,null,8.6,"8,6 bis unter 12,9",2]
[null,null," Punkte pro Zeitraum",0,{"$f":"IF(I8,60,0)","v":0},{"$f":"SUM(F4*8.6,F5*4.3,F6*4.3,F7*8.6)","v":0},{"$f":"SUM(G4*2,G5,G6,G7*2)","v":0},null,false,12.9,"12,9 bis unter 60 ",3]
[null,null,"Summe",{"$f":"SUM(E8:G8)","v":0},null,null,null,null,null,60,"60 und mehr",6]
[null,null,"Einzelpunkte",{"$f":"VLOOKUP(D9,Tabelle1345679[],3,TRUE)","v":0},null,null,null,null,null,"Klassenuntergrenze","Bereich","Punktzahl"]
[null,null,null,null,null,null,null,null,null,0,"0 bis unter 1",0]
[null,null,"Bewertung Selbständigkeit","entfällt oder selbständig","überwiegend selbständig","überwiegend unselbständig","unselbständig",null,null,1,"1 bis unter 2",5]
[null," 5.16","Einhaltung einer Diät oder anderer krankheits- oder therapiebedingter Verhaltensvorschriften",null,null,null,null,{"$f":"CHOOSE(I13,0,1,2,3)","v":0},1,2,"2 bis unter 4",10]
[null,null,"Einzelpunkte",{"$f":"H13","v":0},null,null,null,null,null,4,"4 bis unter 6 ",15]
[]
[null,null,"Summe Einzelpunkte Modul 5",{"$f":"SUM('Modul 5'!D22,'Modul 5'!D14,'Modul 5 Fortsetzung'!D10,'Modul 5 Fortsetzung'!H13)","v":0},null,null,null,null,null,6,"6 bis 15",20]
[null,null,"Gewichtete Punkte Modul 5",{"$f":"VLOOKUP(D16,Tabelle134567910[],3,TRUE)","v":0}]
[null,null,null,null,null,null,null,null,null,{"$f":"Ergebnisse!D6+Ergebnisse!D13+Ergebnisse!D16+Ergebnisse!D19","v":0}]
[]
[]
[]
[]
[]
[]
[]
[]
[]
[null,null,"Persönliche Notizen"]

{"sheet":"Modul 6","index":7,"n_rows":23,"n_cols":12,"rows_kept":23,"cut":false,"hidden":false,"merged":[[23,2,23,6]]}
[null,{"$f":"'Modul 1'!B1","v":""},{"$f":"'Modul 1'!C1","v":""}]
[null,"Modul 6: Gestaltung des Alltagslebens und sozialer Kontakte"]
[null,null,"Bewertung Selbständigkeit","selbständig","überwiegend selbständig","überwiegend unselbständig","unselbständig"]
[null," 6.1","Gestaltung des Tagesablaufs und Anpassung an Veränderungen \nDen Tagesablauf nach individuellen Gewohnheiten und Vorlieben einteilen und bewusst gestalten und ggf. an äußere Veränderungen anpassen",null,null,null,null,{"$f":"CHOOSE(I4,0,1,2,3)","v":0},1,"Klassenuntergrenze","Bereich","Punktzahl"]
[null," 6.2","Ruhen und Schlafen\nNach individuellen Gewohnheiten einen Tag-Nacht-Rhythmus einhalten und für ausreichende Ruhe- und Schlafphasen sorgen",null,null,null,null,0,1,0,"0 bis unter 1",0]
[null," 6.3","Sich beschäftigen \nDie verfügbare Zeit nutzen, um Aktivitäten durchzuführen, die den eigenen Vorlieben und Interessen entsprechen",null,null,null,null,0,1,1,"1 bis unter 4",3.75]
[null," 6.4","Vornehmen von in die Zukunft gerichteten \nPlanungen\nLängere Zeitabschnitte überschauend über den Tag hinausplanen",null,null,null,null,0,1,4,"4 bis unter 7",7.5]
[null," 6.5","Interaktion mit Personen im direkten Kontakt\nIm direkten Kontakt mit Angehörigen, Pflegepersonen, Mitbewohnern oder Besuchern umgehen, Kontakt aufnehmen, Personen ansprechen, auf Ansprache reagieren ",null,null,null,null,0,1,7,"7 bis unter 12",11.25]
[null," 6.6","Kontaktpflege zu Personen außerhalb des \ndirekten Umfelds\nBestehende Kontakte zu Freunden, Bekannten, Nachbarn aufrechterhalten, beenden oder zeitweise ablehnen ",null,null,null,null,0,1,12,"12 bis 18",15]
[null,null,null,null,null,null,null,null,null,{"$f":"Ergebnisse!D6+Ergebnisse!D13+Ergebnisse!D16+Ergebnisse!D19+Ergebnisse!D22","v":0}]
[null,null,"Summe Einzelpunkte Modul 6",{"$f":"SUM(H4:H9)","v":0}]
[null,null,"Gewichtete Punkte Modul 6",{"$f":"VLOOKUP(D11,Tabelle13456791011[],3,TRUE)","v":0}]
[]
[]
[]
[]
[]
[]
[]
[]
[]
[]
[null,null,"Persönliche Notizen:"]

{"sheet":"Ergebnisse","index":8,"n_rows":26,"n_cols":12,"rows_kept":26,"cut":false,"hidden":false,"merged":[[25,1,25,8],[0,8,0,12],[6,1,6,3],[16,1,16,4],[19,1,19,3],[9,1,9,3]]}
[null,{"$f":"'Modul 1'!B1","v":""},{"$f":"'Modul 1'!C1","v":""},null,null,null,null,null,{"$f":"IF(Startseite!H8=\"\",\"\",Startseite!H8)","v":""}]
[]
[null,"Ergebnisse"]
[null,"1 Mobilität",null,null,null,"Schweregrad der Beeinträchtigung"]
[null,"Ergebnis Einzelpunkte",null,{"$f":"+'Modul 1'!H10","v":0},"keine\n0 bis 1 = 0","geringe\n2 bis 3 = 2,5","erhebliche\n4 bis 5 = 5","schwere\n6 bis 9 = 7,5","schwerste\n10 bis 15 = 10"]
[null,"Gewichtete Punkte Modul 1",null,{"$f":"'Modul 1'!H11","v":0}]
[null,"2 Kognitive und Kommunikative Fähigkeiten"]
[null,"Ergebnis Einzelpunkte",null,{"$f":"+'Modul 2'!H16","v":0},"keine\n0 bis 1 = 0","geringe\n2 bis 5 = 3,75","erhebliche\n6 bis 10 = 7,5","schwere\n11 bis 16 = 11,25","schwerste\n17 bis 33 = 15"]
[null,"Gewichtete Punkte Modul 2",null,{"$f":"'Modul 2'!H17","v":0}]
[null,"3 Verhaltensweisen und psychische Problemlagen"]
[null,"Ergebnis Einzelpunkte",null,{"$f":"+'Modul 3'!H18","v":0},"keine\n0 ","geringe\n1 bis 2 = 3,75","erhebliche\n3 bis 4 = 7,5","schwere\n5 bis 6 = 11,25","schwerste\n7 bis 65 = 15"]
[null,"Gewichtete Punkte Modul 3",null,{"$f":"'Modul 3'!H19","v":0}]
[null,"Höchster Wert aus Modul 2 oder Modul 3",null,{"$f":"MAX(D9,D12)","v":0}]
[null,"4 Selbstversorgung"]
[null,"Ergebnis Einzelpunkte",null,{"$f":"+'Modul 4'!I20","v":0},"keine\n0 bis 2 = 0","geringe\n3 bis 7 = 10","erhebliche\n8 bis 18 = 20","schwere\n19 bis 36 = 30","schwerste\n37 bis 54 = 40"]
[null,"Gewichtete Punkte Modul 4",null,{"$f":"'Modul 4'!I21","v":0},null,null,null,null,null,"Klassenuntergrenze","Bereich","Pflegegrad"]
[null,"5 Bewältigung von und selbstständiger Umgang mit krankheits- und therapiebedingten Anforderungen und Belastungen",null,null,null,null,null,null,null,0,"0 bis unter 12,5","Kein Pflegegrad"]
[null,"Ergebnis Einzelpunkte",null,{"$f":"'Modul 5 Fortsetzung'!D16","v":0},"keine\n0 ","geringe\n1 = 5","erhebliche\n2 bis 3 = 10","schwere\n4 bis 5 = 15","schwerste\n6 bis 15 = 20",12.5,"12,5 bis unter 27","Pflegegrad 1"]
[null,"Gewichtete Punkte Modul 5",null,{"$f":"'Modul 5 Fortsetzung'!D17","v":0},null,null,null,null,null,27,"27 bis unter 47,5","Pflegegrad 2"]
[null,"6 Gestaltung des Alltagslebens und sozialer Kontakte",null,null,null,null,null,null,null,47.5,"47,5 bis unter 70","Pflegegrad 3"]
[null,"Ergebnis Einzelpunkte",null,{"$f":"'Modul 6'!D11","v":0},"keine\n0 ","geringe\n1 bis 3 = 3,75","erhebliche\n4 bis 6 = 7,5","schwere\n7 bis 11 = 11,25","schwerste\n12 bis 18 = 15",70,"70 bis unter 90","Pflegegrad 4"]
[null,"Gewichtete Punkte Modul 6",null,{"$f":"'Modul 6'!D12","v":0},null,null,null,null,null,90,"90 und mehr ","Pflegegrad 5"]
[null,"Gesamtpunktzahl ",null,{"$f":"D22+D19+D16+D13+D6","v":0}]
[]
[null,"Einschätzung des Pflegegrads:",null,null,null,{"$f":"VLOOKUP(D23,Tabelle18[#All],3,TRUE)","v":"Kein Pflegegrad"}]
[null,{"$f":"IF('Modul 1'!D12=\"Ja\",'Modul 1'!C12,\"\")","v":""}]

{"sheet":"Notizen","index":9,"n_rows":17,"n_cols":2,"rows_kept":17,"cut":false,"hidden":false,"merged":[]}
[null,{"$f":"'Modul 1'!C1","v":""}]
[null,{"$f":"'Modul 1'!B1","v":""}]
[null,"Persönliche Notizen"]
[null,"Modul 1"]
[null,{"$f":"IF('Modul 1'!C24=\"\",\"Keine Notizen\",'Modul 1'!C24)","v":"Keine Notizen"}]
[null,"Modul 2"]
[null,{"$f":"IF('Modul 2'!C29=\"\",\"Keine Notizen\",'Modul 2'!C29)","v":"Keine Notizen"}]
[null,"Modul 3"]
[null,{"$f":"IF('Modul 3'!C32=\"\",\"Keine Notizen\",'Modul 3'!C32)","v":"Keine Notizen"}]
[null,"Modul 4"]
[null,{"$f":"IF('Modul 4'!C34=\"\",\"Keine Notizen\",'Modul 4'!C34)","v":"Keine Notizen"}]
[null,"Modul 5"]
[null,{"$f":"IF('Modul 5'!C35=\"\",\"Keine Notizen\",'Modul 5'!C35)","v":"Keine Notizen"}]
[null,"Modul 5 Fortsetzung"]
[null,{"$f":"IF('Modul 5 Fortsetzung'!C29=\"\",\"Keine Notizen\",'Modul 5 Fortsetzung'!C29)","v":"Keine Notizen"}]
[null,"Modul 6"]
[null,{"$f":"IF('Modul 6'!C24=\"\",\"Keine Notizen\",'Modul 6'!C24)","v":"Keine Notizen"}]

{"sheet":"Module 7 und 8","index":10,"n_rows":23,"n_cols":4,"rows_kept":23,"cut":false,"hidden":false,"merged":[[7,1,7,3],[23,1,31,3]]}
[null,null,{"$f":"'Modul 1'!B1","v":""},{"$f":"'Modul 1'!C1","v":""}]
[null,"Modul 7: Außerhäusliche Aktivitäten (optional)"]
[null,null,null,"Bewertung Selbständigkeit"]
[null," 7.1","Verlassen der Wohnung"]
[null," 7.2","Fortbewegen außerhalb der Wohnung oder Einrichtung "]
[null," 7.3","Nutzung öffentlicher Verkehrsmittel im Nahverkehr"]
[null," 7.4","Mitfahren in einem PKW/ Taxi "]
[null,"Teilnahme an Aktivitäten\n (Beurteilung ohne Berücksichtigung von Wegstrecken)"]
[null," 7.5","Teilnahme an kulturellen, religiösen oder sportlichen Veranstaltungen "]
[null," 7.6","Besuch von Schule, Kindergarten, einer Werkstatt für behinderte Menschen, Tages-oder Nachtpflege oder eines Tagesbetreuungsangebotes"]
[null," 7.7","Teilnahme an sonstigen Aktivitäten mit anderen Menschen"]
[]
[null,"Modul 8: Haushaltsführung (optional)"]
[null,null,null,"Bewertung Selbständigkeit"]
[null," 8.1","Einkaufen für den täglichen Bedarf"]
[null," 8.2","Zubereitung einfacher Mahlzeiten"]
[null," 8.3","Einfache Aufräum- und Reinigungsarbeiten"]
[null," 8.4","Aufwändige Aufräum- und Reinigungsarbeiten, einschließlich Wäschepflege"]
[null," 8.5","Nutzung von Dienstleistungen"]
[null," 8.6 ","Umgang mit finanziellen Angelegenheiten"]
[null," 8.7","Umgang mit Behördenangelegenheiten"]
[]
[null,"Persönliche Notizen:"]